[Event "Early-Titled-Tuesday-Blitz-September-12-2023"]
[Site "Chess.com"]
[Date "2023.09.12"]
[Round "8"]
[White "MusicCityMaster"]
[Black "Chessdreamer2020"]
[Result "1-0"]
[WhiteElo "2397"]
[BlackElo "2511"]
[TimeControl "180+1"]
[EndTime "9:27:41 PDT"]
[Termination "MusicCityMaster won by checkmate"]

1. e4 {[%clk 0:03:00.9]} 1... d6 {[%clk 0:03:00.3]} 2. d4 {[%clk 0:03:00.2]}
2... Nf6 {[%clk 0:03:00.7]} 3. Nc3 {[%clk 0:02:59.7]} 3... c6 {[%clk 0:03:01.3]}
4. Bg5 {[%clk 0:02:59.2]} 4... Nbd7 {[%clk 0:02:59.4]} 5. a4 {[%clk 0:02:47]}
5... e5 {[%clk 0:02:58.8]} 6. Nf3 {[%clk 0:02:44.9]} 6... Be7 {[%clk 0:02:59.1]}
7. Bc4 {[%clk 0:02:40.4]} 7... O-O {[%clk 0:02:59.3]} 8. h4 {[%clk 0:02:35.5]}
8... Re8 {[%clk 0:02:58.8]} 9. O-O {[%clk 0:02:32.9]} 9... Qc7 {[%clk
0:02:57.1]} 10. Re1 {[%clk 0:02:26.4]} 10... h6 {[%clk 0:02:57]} 11. Bc1 {[%clk
0:02:17]} 11... Bf8 {[%clk 0:02:48.2]} 12. b3 {[%clk 0:02:12.6]} 12... b6 {[%clk
0:02:47]} 13. Bb2 {[%clk 0:02:12.5]} 13... a6 {[%clk 0:02:46.7]} 14. d5 {[%clk
0:02:03.2]} 14... c5 {[%clk 0:02:44.6]} 15. Bf1 {[%clk 0:01:57.9]} 15... Qd8
{[%clk 0:02:41.9]} 16. Nd2 {[%clk 0:01:56.2]} 16... g6 {[%clk 0:02:37.8]} 17.
Nc4 {[%clk 0:01:40.2]} 17... Rb8 {[%clk 0:02:36.4]} 18. Re3 {[%clk 0:01:34.2]}
18... h5 {[%clk 0:02:34.3]} 19. Rg3 {[%clk 0:01:31.7]} 19... Kh7 {[%clk
0:02:34]} 20. Bd3 {[%clk 0:01:17.6]} 20... Ng4 {[%clk 0:02:28]} 21. f3 {[%clk
0:01:09.1]} 21... Qxh4 {[%clk 0:02:26]} 22. Rh3 {[%clk 0:00:55.1]} 22... Qf2+
{[%clk 0:02:25.9]} 23. Kh1 {[%clk 0:00:55]} 23... Ne3 {[%clk 0:02:16.6]} 24.
Nxe3 {[%clk 0:00:52.3]} 24... Qxe3 {[%clk 0:02:17.5]} 25. Rh2 {[%clk 0:00:48.2]}
25... Bh6 {[%clk 0:02:13.7]} 26. Bc1 {[%clk 0:00:44.5]} 26... Qd4 {[%clk
0:02:12.6]} 27. Bxh6 {[%clk 0:00:40.9]} 27... Kxh6 {[%clk 0:02:11.9]} 28. Qd2+
{[%clk 0:00:32.9]} 28... Kg7 {[%clk 0:02:12.3]} 29. Rb1 {[%clk 0:00:29.9]} 29...
Qb4 {[%clk 0:02:09.2]} 30. Rf1 {[%clk 0:00:21.9]} 30... b5 {[%clk 0:02:08.1]}
31. axb5 {[%clk 0:00:21.7]} 31... axb5 {[%clk 0:02:09]} 32. f4 {[%clk
0:00:21.8]} 32... exf4 {[%clk 0:02:09]} 33. Qxf4 {[%clk 0:00:20.8]} 33... Ne5
{[%clk 0:02:02.7]} 34. Qf6+ {[%clk 0:00:20.8]} 34... Kg8 {[%clk 0:02:03.1]} 35.
Ne2 {[%clk 0:00:18.1]} 35... c4 {[%clk 0:02:02.6]} 36. bxc4 {[%clk 0:00:14.5]}
36... bxc4 {[%clk 0:02:03.5]} 37. Nf4 {[%clk 0:00:11.8]} 37... Ng4 {[%clk
0:01:50.1]} 38. Qg5 {[%clk 0:00:08.3]} 38... cxd3 {[%clk 0:01:42.9]} 39. Nxg6
{[%clk 0:00:07.5]} 39... Qxe4 {[%clk 0:01:17.1]} 40. Ne5+ {[%clk 0:00:07]} 40...
Kf8 {[%clk 0:01:17.2]} 41. Rxf7# {[%clk 0:00:06.2]} 1-0

[Event "Early-Titled-Tuesday-Blitz-September-12-2023"]
[Site "Chess.com"]
[Date "2023.09.12"]
[Round "8"]
[White "Juicy_Fork"]
[Black "JaloliddinIlkhomi"]
[Result "0-1"]
[WhiteElo "2469"]
[BlackElo "2625"]
[TimeControl "180+1"]
[EndTime "9:27:45 PDT"]
[Termination "JaloliddinIlkhomi won by checkmate"]

1. e4 {[%clk 0:03:00.9]} 1... e6 {[%clk 0:02:57.5]} 2. d4 {[%clk 0:03:00.3]}
2... d5 {[%clk 0:02:54.6]} 3. Nc3 {[%clk 0:03:00.9]} 3... Bb4 {[%clk 0:02:54.1]}
4. e5 {[%clk 0:02:59.3]} 4... c5 {[%clk 0:02:54.1]} 5. Bd2 {[%clk 0:02:59.4]}
5... Ne7 {[%clk 0:02:52.9]} 6. a3 {[%clk 0:02:57.3]} 6... Bxc3 {[%clk
0:02:51.9]} 7. Bxc3 {[%clk 0:02:58.2]} 7... b6 {[%clk 0:02:50.8]} 8. Qg4 {[%clk
0:02:52.8]} 8... O-O {[%clk 0:02:39.6]} 9. Nf3 {[%clk 0:02:49.9]} 9... Ba6
{[%clk 0:02:39.4]} 10. Bxa6 {[%clk 0:02:47.4]} 10... Nxa6 {[%clk 0:02:40.3]} 11.
Qf4 {[%clk 0:02:41.2]} 11... f6 {[%clk 0:02:09.8]} 12. O-O-O {[%clk 0:02:39.4]}
12... c4 {[%clk 0:01:57.6]} 13. h4 {[%clk 0:02:29]} 13... b5 {[%clk 0:01:57.1]}
14. h5 {[%clk 0:02:27.3]} 14... Nc6 {[%clk 0:01:48.6]} 15. Qg3 {[%clk
0:02:22.3]} 15... b4 {[%clk 0:01:45.1]} 16. h6 {[%clk 0:02:17.4]} 16... g6
{[%clk 0:01:39.1]} 17. axb4 {[%clk 0:02:14]} 17... Naxb4 {[%clk 0:01:39.4]} 18.
Bxb4 {[%clk 0:02:04.9]} 18... Nxb4 {[%clk 0:01:37.2]} 19. exf6 {[%clk 0:02:05]}
19... Qa5 {[%clk 0:01:08.2]} 20. Ng5 {[%clk 0:01:22.6]} 20... Rxf6 {[%clk
0:00:32.3]} 21. Qe5 {[%clk 0:01:19]} 21... Raf8 {[%clk 0:00:13.1]} 22. f3 {[%clk
0:01:10.7]} 22... Na2+ {[%clk 0:00:10.8]} 23. Kb1 {[%clk 0:01:10.6]} 23... Nb4
{[%clk 0:00:08.5]} 24. Nxe6 {[%clk 0:01:06.6]} 24... Qa2+ {[%clk 0:00:08.5]} 25.
Kc1 {[%clk 0:01:06.8]} 25... c3 {[%clk 0:00:07.4]} 26. Rdf1 {[%clk 0:00:42.9]}
26... Qa1# {[%clk 0:00:03.4]} 0-1

[Event "Early-Titled-Tuesday-Blitz-September-12-2023"]
[Site "Chess.com"]
[Date "2023.09.12"]
[Round "8"]
[White "fen_fire"]
[Black "chess123456s"]
[Result "0-1"]
[WhiteElo "2473"]
[BlackElo "2621"]
[TimeControl "180+1"]
[EndTime "9:27:48 PDT"]
[Termination "chess123456s won on time"]

1. c3 {[%clk 0:02:53]} 1... d5 {[%clk 0:02:59.6]} 2. d3 {[%clk 0:02:53.5]} 2...
Nf6 {[%clk 0:02:59.6]} 3. Nd2 {[%clk 0:02:53.7]} 3... e5 {[%clk 0:02:59.9]} 4.
Ngf3 {[%clk 0:02:54.2]} 4... Nc6 {[%clk 0:03:00.5]} 5. e4 {[%clk 0:02:54.7]}
5... Bc5 {[%clk 0:03:01]} 6. Be2 {[%clk 0:02:54.4]} 6... O-O {[%clk 0:03:01]} 7.
h3 {[%clk 0:02:53.5]} 7... a5 {[%clk 0:03:00.7]} 8. Qc2 {[%clk 0:02:53.3]} 8...
Re8 {[%clk 0:03:00.6]} 9. a4 {[%clk 0:02:50.9]} 9... b6 {[%clk 0:02:58.9]} 10.
O-O {[%clk 0:02:46.9]} 10... Ba6 {[%clk 0:02:58.7]} 11. Re1 {[%clk 0:02:47.4]}
11... Qd7 {[%clk 0:02:55.3]} 12. Bf1 {[%clk 0:02:43.5]} 12... h6 {[%clk
0:02:48.2]} 13. exd5 {[%clk 0:02:37.8]} 13... Nxd5 {[%clk 0:02:47.1]} 14. Nc4
{[%clk 0:02:38.6]} 14... Bxc4 {[%clk 0:02:26.8]} 15. dxc4 {[%clk 0:02:38.1]}
15... Nf6 {[%clk 0:02:25]} 16. Nd2 {[%clk 0:02:13.7]} 16... Rad8 {[%clk
0:02:18.2]} 17. Ne4 {[%clk 0:02:13.1]} 17... Nxe4 {[%clk 0:02:15.6]} 18. Qxe4
{[%clk 0:02:14]} 18... Kh8 {[%clk 0:02:02]} 19. g4 {[%clk 0:01:15.4]} 19... Ne7
{[%clk 0:01:54.6]} 20. Bg2 {[%clk 0:01:09.2]} 20... Ng6 {[%clk 0:01:51.7]} 21.
Qf5 {[%clk 0:00:51.2]} 21... Qd3 {[%clk 0:01:13.8]} 22. Qxd3 {[%clk 0:00:14.9]}
22... Rxd3 {[%clk 0:01:14.7]} 23. Be4 {[%clk 0:00:06.1]} 23... Rxh3 {[%clk
0:01:10.4]} 24. Kg2 {[%clk 0:00:06.8]} 24... Rh4 {[%clk 0:01:04.7]} 25. f3
{[%clk 0:00:07.4]} 25... Nf4+ {[%clk 0:00:58.8]} 26. Bxf4 {[%clk 0:00:06.9]}
26... exf4 {[%clk 0:00:59.7]} 27. Bd5 {[%clk 0:00:05.9]} 27... Be3 {[%clk
0:00:51.8]} 28. Bxf7 {[%clk 0:00:05.1]} 28... Re7 {[%clk 0:00:51.4]} 29. Bh5
{[%clk 0:00:04.7]} 29... Kh7 {[%clk 0:00:50.2]} 0-1

[Event "Early-Titled-Tuesday-Blitz-September-12-2023"]
[Site "Chess.com"]
[Date "2023.09.12"]
[Round "8"]
[White "viktorskliarov"]
[Black "LoaySameer"]
[Result "1-0"]
[WhiteElo "2664"]
[BlackElo "2531"]
[TimeControl "180+1"]
[EndTime "9:27:49 PDT"]
[Termination "viktorskliarov won by resignation"]

1. e4 {[%clk 0:03:00.9]} 1... g6 {[%clk 0:02:59]} 2. d4 {[%clk 0:03:00.6]} 2...
Bg7 {[%clk 0:02:59.2]} 3. Nc3 {[%clk 0:03:01.2]} 3... d6 {[%clk 0:02:58.9]} 4.
Be3 {[%clk 0:03:01.4]} 4... a6 {[%clk 0:02:59.4]} 5. f3 {[%clk 0:03:01.3]} 5...
b5 {[%clk 0:02:58.2]} 6. Qd2 {[%clk 0:03:01.9]} 6... Nd7 {[%clk 0:02:58.3]} 7.
g4 {[%clk 0:03:02.4]} 7... Bb7 {[%clk 0:02:57.8]} 8. h4 {[%clk 0:03:02.4]} 8...
h5 {[%clk 0:02:58.4]} 9. gxh5 {[%clk 0:03:00.7]} 9... Rxh5 {[%clk 0:02:59.3]}
10. Nge2 {[%clk 0:02:58.4]} 10... Ngf6 {[%clk 0:02:59.2]} 11. Ng3 {[%clk
0:02:57.1]} 11... Rh8 {[%clk 0:02:59.4]} 12. O-O-O {[%clk 0:02:56.4]} 12... c5
{[%clk 0:02:53.1]} 13. Kb1 {[%clk 0:02:54.3]} 13... b4 {[%clk 0:02:40.2]} 14.
Nce2 {[%clk 0:02:50.2]} 14... Qc7 {[%clk 0:02:36.6]} 15. h5 {[%clk 0:02:37.3]}
15... Nxh5 {[%clk 0:02:27.7]} 16. Nxh5 {[%clk 0:02:36.7]} 16... gxh5 {[%clk
0:02:28.3]} 17. Ng3 {[%clk 0:02:34]} 17... h4 {[%clk 0:01:56]} 18. Nf5 {[%clk
0:02:32.6]} 18... Bf6 {[%clk 0:01:56.2]} 19. Bg5 {[%clk 0:02:20.6]} 19... O-O-O
{[%clk 0:01:49]} 20. Nxe7+ {[%clk 0:02:20]} 20... Bxe7 {[%clk 0:01:28.9]} 21.
Bxe7 {[%clk 0:02:19.6]} 21... Rde8 {[%clk 0:01:29.8]} 22. dxc5 {[%clk
0:01:57.1]} 22... dxc5 {[%clk 0:01:29.8]} 23. Bd6 {[%clk 0:01:46.3]} 23... Qb6
{[%clk 0:01:19.7]} 24. Bh3 {[%clk 0:01:37.2]} 24... Bc6 {[%clk 0:01:14.9]} 25.
Qf4 {[%clk 0:01:24.4]} 25... c4 {[%clk 0:00:27.7]} 26. Qxf7 {[%clk 0:01:19.7]}
26... b3 {[%clk 0:00:26.2]} 27. Qxc4 {[%clk 0:01:11.8]} 27... bxa2+ {[%clk
0:00:24.6]} 28. Qxa2 {[%clk 0:01:04.6]} 28... Rh7 {[%clk 0:00:19.5]} 29. Bf5
{[%clk 0:00:53.5]} 29... Rg7 {[%clk 0:00:18.8]} 30. Rxh4 {[%clk 0:00:43]} 30...
Kb7 {[%clk 0:00:19.3]} 31. Rg4 {[%clk 0:00:36.4]} 31... Rh7 {[%clk 0:00:18.5]}
32. Bxh7 {[%clk 0:00:35.9]} 1-0

[Event "Early-Titled-Tuesday-Blitz-September-12-2023"]
[Site "Chess.com"]
[Date "2023.09.12"]
[Round "8"]
[White "Rsnr"]
[Black "BillieKimbah"]
[Result "0-1"]
[WhiteElo "2914"]
[BlackElo "3026"]
[TimeControl "180+1"]
[EndTime "9:27:52 PDT"]
[Termination "BillieKimbah won by resignation"]

1. d4 {[%clk 0:03:00]} 1... Nf6 {[%clk 0:02:58.6]} 2. c4 {[%clk 0:02:59.6]} 2...
e6 {[%clk 0:02:59.1]} 3. Nf3 {[%clk 0:03:00.1]} 3... d5 {[%clk 0:02:58.2]} 4. g3
{[%clk 0:02:59.8]} 4... Bb4+ {[%clk 0:02:51.6]} 5. Bd2 {[%clk 0:02:59.6]} 5...
Bd6 {[%clk 0:02:51.8]} 6. Nc3 {[%clk 0:02:58.5]} 6... O-O {[%clk 0:02:50.9]} 7.
Bg5 {[%clk 0:02:57.2]} 7... Be7 {[%clk 0:02:51.2]} 8. Bg2 {[%clk 0:02:48.9]}
8... h6 {[%clk 0:02:33.7]} 9. Bxf6 {[%clk 0:02:35.6]} 9... Bxf6 {[%clk 0:02:03]}
10. Qb3 {[%clk 0:02:35]} 10... c6 {[%clk 0:02:02.3]} 11. O-O {[%clk 0:02:32.2]}
11... Qb6 {[%clk 0:02:00.3]} 12. c5 {[%clk 0:01:55.2]} 12... Qc7 {[%clk
0:01:55.1]} 13. e4 {[%clk 0:01:51.2]} 13... b6 {[%clk 0:01:54.1]} 14. cxb6
{[%clk 0:01:47.5]} 14... axb6 {[%clk 0:01:55]} 15. Qc2 {[%clk 0:01:44.7]} 15...
Qa7 {[%clk 0:01:51.9]} 16. Rfd1 {[%clk 0:01:33.7]} 16... b5 {[%clk 0:01:50.5]}
17. a3 {[%clk 0:01:19.1]} 17... Nd7 {[%clk 0:01:49.6]} 18. exd5 {[%clk
0:01:04.4]} 18... exd5 {[%clk 0:01:50.5]} 19. Ne2 {[%clk 0:01:04.5]} 19... Bb7
{[%clk 0:01:48.2]} 20. Nf4 {[%clk 0:01:03.9]} 20... Rfe8 {[%clk 0:01:42.4]} 21.
Rac1 {[%clk 0:01:02.5]} 21... Nb6 {[%clk 0:01:37.9]} 22. Nd3 {[%clk 0:01:02.5]}
22... Nc4 {[%clk 0:01:38.1]} 23. Nc5 {[%clk 0:01:01.2]} 23... Bc8 {[%clk
0:01:37.9]} 24. Re1 {[%clk 0:00:42.3]} 24... Bg4 {[%clk 0:01:37.5]} 25. b3
{[%clk 0:00:34.8]} 25... Nxa3 {[%clk 0:01:28.8]} 26. Qd2 {[%clk 0:00:35]} 26...
b4 {[%clk 0:01:25.3]} 27. Rxe8+ {[%clk 0:00:29.7]} 27... Rxe8 {[%clk 0:01:24.6]}
28. Qxb4 {[%clk 0:00:30.5]} 28... Nb5 {[%clk 0:01:15.8]} 29. Rd1 {[%clk
0:00:30.3]} 29... Nxd4 {[%clk 0:01:01.6]} 30. Nxd4 {[%clk 0:00:19.9]} 30... Bxd1
{[%clk 0:01:00.5]} 31. Nxc6 {[%clk 0:00:20.4]} 31... Qa1 {[%clk 0:00:59.3]} 0-1

[Event "Early-Titled-Tuesday-Blitz-September-12-2023"]
[Site "Chess.com"]
[Date "2023.09.12"]
[Round "8"]
[White "Aash20"]
[Black "pirulillo"]
[Result "1-0"]
[WhiteElo "2508"]
[BlackElo "2306"]
[TimeControl "180+1"]
[EndTime "9:27:52 PDT"]
[Termination "Aash20 won by resignation"]

1. e4 {[%clk 0:03:00.9]} 1... c5 {[%clk 0:02:55]} 2. Nf3 {[%clk 0:03:00.3]} 2...
e6 {[%clk 0:02:53.1]} 3. Nc3 {[%clk 0:03:00]} 3... Nc6 {[%clk 0:02:51.6]} 4. Bb5
{[%clk 0:02:57.4]} 4... Nd4 {[%clk 0:02:49.4]} 5. O-O {[%clk 0:02:56.8]} 5... a6
{[%clk 0:02:45.6]} 6. Be2 {[%clk 0:02:52.4]} 6... b5 {[%clk 0:02:45.1]} 7. d3
{[%clk 0:02:51]} 7... Bb7 {[%clk 0:02:44.6]} 8. Be3 {[%clk 0:02:49.2]} 8... Nf6
{[%clk 0:02:38.2]} 9. Nxd4 {[%clk 0:02:45.7]} 9... cxd4 {[%clk 0:02:37.3]} 10.
Bxd4 {[%clk 0:02:45.6]} 10... Be7 {[%clk 0:02:34]} 11. f4 {[%clk 0:02:44.1]}
11... d5 {[%clk 0:02:32.9]} 12. e5 {[%clk 0:02:40.2]} 12... Nd7 {[%clk
0:02:32.8]} 13. Bf2 {[%clk 0:02:33.6]} 13... Bc5 {[%clk 0:02:28.1]} 14. d4
{[%clk 0:02:32.9]} 14... Bb4 {[%clk 0:02:28.6]} 15. Nb1 {[%clk 0:02:31.7]} 15...
Rc8 {[%clk 0:02:23.7]} 16. c3 {[%clk 0:02:31.1]} 16... Be7 {[%clk 0:02:22.4]}
17. a3 {[%clk 0:02:24.4]} 17... f5 {[%clk 0:02:20.3]} 18. exf6 {[%clk
0:02:19.2]} 18... Nxf6 {[%clk 0:02:19.7]} 19. Bd3 {[%clk 0:02:15.4]} 19... O-O
{[%clk 0:02:12.6]} 20. Nd2 {[%clk 0:02:15.1]} 20... Bd6 {[%clk 0:02:10]} 21. Bg3
{[%clk 0:02:11]} 21... Qb6 {[%clk 0:02:04.1]} 22. Qe2 {[%clk 0:02:06.5]} 22...
Rce8 {[%clk 0:02:03]} 23. Kh1 {[%clk 0:02:00.8]} 23... Bc6 {[%clk 0:01:58.8]}
24. Nf3 {[%clk 0:01:53]} 24... Ne4 {[%clk 0:01:51.9]} 25. Ne5 {[%clk 0:01:47.6]}
25... Bxe5 {[%clk 0:01:51.4]} 26. fxe5 {[%clk 0:01:46.3]} 26... a5 {[%clk
0:01:41.6]} 27. Bh4 {[%clk 0:01:33.1]} 27... Qb7 {[%clk 0:01:31.6]} 28. Qg4
{[%clk 0:01:28.8]} 28... Rxf1+ {[%clk 0:01:26]} 29. Rxf1 {[%clk 0:01:26.8]}
29... Bd7 {[%clk 0:01:24.8]} 30. Qf4 {[%clk 0:01:11.3]} 30... Qa8 {[%clk
0:01:20.1]} 31. Qf7+ {[%clk 0:01:09.7]} 31... Kh8 {[%clk 0:01:20.5]} 32. Qxd7
{[%clk 0:01:09.5]} 32... Rf8 {[%clk 0:01:20.3]} 33. Rf7 {[%clk 0:01:02.8]} 33...
Rxf7 {[%clk 0:01:16.7]} 34. Qxf7 {[%clk 0:01:02]} 34... b4 {[%clk 0:01:17.1]}
35. cxb4 {[%clk 0:00:57.6]} 35... axb4 {[%clk 0:01:17.2]} 36. Bxe4 {[%clk
0:00:53.9]} 36... dxe4 {[%clk 0:01:16.3]} 37. Qxe6 {[%clk 0:00:48.5]} 37... bxa3
{[%clk 0:01:16.2]} 38. bxa3 {[%clk 0:00:47.8]} 38... e3 {[%clk 0:01:16.6]} 39.
h3 {[%clk 0:00:44.8]} 39... h6 {[%clk 0:01:16]} 40. Qd6 {[%clk 0:00:39.6]} 40...
Qe4 {[%clk 0:01:11.7]} 41. Be1 {[%clk 0:00:31.9]} 41... Qb1 {[%clk 0:01:10.1]}
42. Qb4 {[%clk 0:00:28.9]} 42... Qd3 {[%clk 0:01:09.9]} 43. e6 {[%clk
0:00:25.2]} 43... e2 {[%clk 0:01:08.3]} 44. e7 {[%clk 0:00:22.6]} 1-0

[Event "Early-Titled-Tuesday-Blitz-September-12-2023"]
[Site "Chess.com"]
[Date "2023.09.12"]
[Round "8"]
[White "LevonAronian"]
[Black "FabianoCaruana"]
[Result "1-0"]
[WhiteElo "3059"]
[BlackElo "3070"]
[TimeControl "180+1"]
[EndTime "9:27:54 PDT"]
[Termination "LevonAronian won by resignation"]

1. e4 {[%clk 0:03:00.9]} 1... e5 {[%clk 0:03:00.5]} 2. Nf3 {[%clk 0:03:00.9]}
2... Nc6 {[%clk 0:03:01.1]} 3. Bc4 {[%clk 0:03:00.7]} 3... Bc5 {[%clk
0:03:00.4]} 4. c3 {[%clk 0:02:59.5]} 4... Nf6 {[%clk 0:03:00.7]} 5. d4 {[%clk
0:03:00]} 5... exd4 {[%clk 0:03:00.5]} 6. e5 {[%clk 0:03:00.7]} 6... d5 {[%clk
0:03:00.4]} 7. Bb5 {[%clk 0:03:01.3]} 7... Ne4 {[%clk 0:03:00.6]} 8. cxd4 {[%clk
0:03:01.9]} 8... Bb6 {[%clk 0:03:00.3]} 9. Nc3 {[%clk 0:03:02.1]} 9... O-O
{[%clk 0:02:59.2]} 10. Be3 {[%clk 0:03:02.3]} 10... f5 {[%clk 0:02:57.7]} 11. g3
{[%clk 0:03:00.3]} 11... Be6 {[%clk 0:02:54.8]} 12. Ne2 {[%clk 0:02:52.4]} 12...
g5 {[%clk 0:02:47.6]} 13. h4 {[%clk 0:02:45.3]} 13... f4 {[%clk 0:02:16.2]} 14.
gxf4 {[%clk 0:02:43.1]} 14... g4 {[%clk 0:02:16.7]} 15. Ng5 {[%clk 0:02:42.1]}
15... Bf5 {[%clk 0:02:16.5]} 16. Nxe4 {[%clk 0:02:29.9]} 16... Bxe4 {[%clk
0:02:17.4]} 17. Rg1 {[%clk 0:02:29.5]} 17... Qxh4 {[%clk 0:02:09.8]} 18. Ng3
{[%clk 0:02:15.6]} 18... Ba5+ {[%clk 0:01:51.5]} 19. Bd2 {[%clk 0:02:14.7]}
19... Bxd2+ {[%clk 0:01:22.5]} 20. Qxd2 {[%clk 0:02:09.6]} 20... Bf3 {[%clk
0:01:21.1]} 21. f5 {[%clk 0:01:49.8]} 21... Rae8 {[%clk 0:01:07.2]} 22. Bxc6
{[%clk 0:01:48.2]} 22... bxc6 {[%clk 0:01:08.1]} 23. Rc1 {[%clk 0:01:47.7]}
23... Rf6 {[%clk 0:00:47.5]} 24. Qe3 {[%clk 0:01:46.5]} 24... Kh8 {[%clk
0:00:38.2]} 25. Kd2 {[%clk 0:01:45.5]} 25... Rf7 {[%clk 0:00:20]} 26. Rxc6
{[%clk 0:01:37.1]} 26... Qh2 {[%clk 0:00:20.1]} 27. Rgc1 {[%clk 0:01:29.5]}
27... Be4 {[%clk 0:00:20.5]} 28. Rh6 {[%clk 0:01:19.1]} 28... Qg2 {[%clk
0:00:18.7]} 29. e6 {[%clk 0:01:19.3]} 29... Rfe7 {[%clk 0:00:07.7]} 30. Rch1
{[%clk 0:01:15.8]} 30... Rb8 {[%clk 0:00:03.6]} 31. b3 {[%clk 0:01:12.7]} 31...
Qf3 {[%clk 0:00:04.1]} 32. Qxf3 {[%clk 0:01:11.9]} 32... Bxf3 {[%clk 0:00:05]}
33. R1h4 {[%clk 0:01:02.8]} 33... Kg8 {[%clk 0:00:05]} 34. Nh5 {[%clk
0:00:57.9]} 34... Rf8 {[%clk 0:00:02.9]} 35. Nf6+ {[%clk 0:00:54.8]} 35... Kg7
{[%clk 0:00:03.6]} 36. Nd7 {[%clk 0:00:54.7]} 36... Rxf5 {[%clk 0:00:03.8]} 37.
Rxh7+ {[%clk 0:00:54.2]} 37... Kg6 {[%clk 0:00:04.2]} 38. Rxe7 {[%clk
0:00:52.8]} 38... Be4 {[%clk 0:00:05.1]} 39. Rxg4+ {[%clk 0:00:52]} 1-0

[Event "Early-Titled-Tuesday-Blitz-September-12-2023"]
[Site "Chess.com"]
[Date "2023.09.12"]
[Round "8"]
[White "DonJuanEGenaro"]
[Black "Quattroporte300"]
[Result "1-0"]
[WhiteElo "1994"]
[BlackElo "2384"]
[TimeControl "180+1"]
[EndTime "9:27:58 PDT"]
[Termination "DonJuanEGenaro won by resignation"]

1. d4 {[%clk 0:03:00.9]} 1... g6 {[%clk 0:02:58.8]} 2. Nf3 {[%clk 0:02:58.9]}
2... Bg7 {[%clk 0:02:59.7]} 3. Bf4 {[%clk 0:02:58.7]} 3... d6 {[%clk 0:02:59.7]}
4. e3 {[%clk 0:02:58.7]} 4... Nd7 {[%clk 0:02:59.2]} 5. Bc4 {[%clk 0:02:58.5]}
5... Ngf6 {[%clk 0:02:56.5]} 6. Bxf7+ {[%clk 0:02:57.9]} 6... Kxf7 {[%clk
0:02:55.7]} 7. Ng5+ {[%clk 0:02:57.9]} 7... Kg8 {[%clk 0:02:51.5]} 8. Ne6 {[%clk
0:02:57.3]} 8... Qe8 {[%clk 0:02:51.4]} 9. Nxc7 {[%clk 0:02:57]} 9... Qf7 {[%clk
0:02:35.9]} 10. Nxa8 {[%clk 0:02:54.5]} 10... Nd5 {[%clk 0:02:34.7]} 11. Bg3
{[%clk 0:02:49.1]} 11... b6 {[%clk 0:02:34.6]} 12. c4 {[%clk 0:02:43]} 12... Bb7
{[%clk 0:02:33.8]} 13. cxd5 {[%clk 0:02:38.9]} 13... Bxa8 {[%clk 0:02:34.3]} 14.
Nc3 {[%clk 0:02:37.8]} 14... h5 {[%clk 0:02:30]} 15. h3 {[%clk 0:02:24.3]} 15...
Kh7 {[%clk 0:02:27.4]} 16. e4 {[%clk 0:02:14.3]} 16... Qf6 {[%clk 0:02:17.3]}
17. Qa4 {[%clk 0:01:56.5]} 17... Rd8 {[%clk 0:01:58]} 18. Rd1 {[%clk 0:01:46.7]}
18... a5 {[%clk 0:01:54.3]} 19. O-O {[%clk 0:01:42.9]} 19... Bb7 {[%clk
0:01:53]} 20. Rfe1 {[%clk 0:01:37.6]} 20... Qf7 {[%clk 0:01:24.3]} 21. h4 {[%clk
0:01:17.5]} 21... Nf6 {[%clk 0:01:19.3]} 22. Qb5 {[%clk 0:01:03]} 22... Nd7
{[%clk 0:01:15.1]} 23. e5 {[%clk 0:01:01.4]} 23... dxe5 {[%clk 0:01:00.4]} 24.
dxe5 {[%clk 0:01:00.4]} 24... Qe8 {[%clk 0:00:46.8]} 25. Ne4 {[%clk 0:00:53]}
25... Kh8 {[%clk 0:00:36.5]} 26. Ng5 {[%clk 0:00:51.4]} 26... Rb8 {[%clk
0:00:19.1]} 27. e6 {[%clk 0:00:45.7]} 27... Nf6 {[%clk 0:00:18.4]} 28. Qxb6
{[%clk 0:00:38.5]} 28... Nxd5 {[%clk 0:00:10.5]} 29. Rxd5 {[%clk 0:00:36]} 29...
Bxd5 {[%clk 0:00:10.4]} 30. Qxb8 {[%clk 0:00:34.7]} 1-0

[Event "Early-Titled-Tuesday-Blitz-September-12-2023"]
[Site "Chess.com"]
[Date "2023.09.12"]
[Round "8"]
[White "KNVB"]
[Black "h4parah5"]
[Result "0-1"]
[WhiteElo "2757"]
[BlackElo "2937"]
[TimeControl "180+1"]
[EndTime "9:27:59 PDT"]
[Termination "h4parah5 won by resignation"]

1. d4 {[%clk 0:02:57.7]} 1... Nf6 {[%clk 0:02:59.5]} 2. Bf4 {[%clk 0:02:57.4]}
2... c5 {[%clk 0:02:56.1]} 3. e3 {[%clk 0:02:57.3]} 3... Nd5 {[%clk 0:02:53.2]}
4. Bxb8 {[%clk 0:02:54.5]} 4... Rxb8 {[%clk 0:02:52.9]} 5. c3 {[%clk 0:02:51.1]}
5... e6 {[%clk 0:02:49.1]} 6. Nf3 {[%clk 0:02:48.3]} 6... Nf6 {[%clk 0:02:48]}
7. Bd3 {[%clk 0:02:45.3]} 7... b5 {[%clk 0:02:44.5]} 8. O-O {[%clk 0:02:43.7]}
8... Bb7 {[%clk 0:02:42.1]} 9. Nbd2 {[%clk 0:02:29.6]} 9... Be7 {[%clk
0:02:39.4]} 10. Qe2 {[%clk 0:02:16.6]} 10... b4 {[%clk 0:02:27.2]} 11. cxb4
{[%clk 0:02:10.7]} 11... cxd4 {[%clk 0:02:26.2]} 12. b5 {[%clk 0:01:45]} 12...
dxe3 {[%clk 0:02:24.8]} 13. Qxe3 {[%clk 0:01:45.9]} 13... Qb6 {[%clk 0:02:17.1]}
14. Nc4 {[%clk 0:00:59.3]} 14... Qxe3 {[%clk 0:02:16.1]} 15. fxe3 {[%clk
0:00:59.6]} 15... O-O {[%clk 0:02:09.9]} 16. a4 {[%clk 0:00:56.3]} 16... Nd5
{[%clk 0:02:07.3]} 17. Kf2 {[%clk 0:00:54.5]} 17... Nb4 {[%clk 0:01:57.5]} 18.
Be2 {[%clk 0:00:53.2]} 18... Rfc8 {[%clk 0:01:43.5]} 19. Rac1 {[%clk 0:00:43.4]}
19... f6 {[%clk 0:01:32.4]} 20. Nd4 {[%clk 0:00:31.4]} 20... Bd5 {[%clk
0:01:30.5]} 21. b3 {[%clk 0:00:26.7]} 21... Bc5 {[%clk 0:01:21.2]} 22. Rfd1
{[%clk 0:00:24.2]} 22... Be4 {[%clk 0:01:07.3]} 23. Rd2 {[%clk 0:00:17]} 23...
e5 {[%clk 0:01:06.8]} 24. Bf3 {[%clk 0:00:03.4]} 24... exd4 {[%clk 0:01:03.1]}
25. Bxe4 {[%clk 0:00:03.6]} 25... dxe3+ {[%clk 0:01:03.3]} 26. Nxe3 {[%clk
0:00:03.6]} 26... Bxe3+ {[%clk 0:01:04.2]} 27. Kxe3 {[%clk 0:00:03.6]} 27...
Rxc1 {[%clk 0:01:05.1]} 28. Rxd7 {[%clk 0:00:04]} 28... Re8 {[%clk 0:00:58.9]}
29. Kd2 {[%clk 0:00:03.8]} 29... Rcc8 {[%clk 0:00:56]} 30. Rd4 {[%clk
0:00:03.9]} 30... Rcd8 {[%clk 0:00:55.8]} 31. Rxd8 {[%clk 0:00:03.6]} 31...
Rxd8+ {[%clk 0:00:56.3]} 32. Kc3 {[%clk 0:00:04.5]} 32... a5 {[%clk 0:00:56.7]}
33. bxa6 {[%clk 0:00:04.2]} 33... Nxa6 {[%clk 0:00:56.8]} 34. b4 {[%clk
0:00:05]} 34... Nxb4 {[%clk 0:00:56.5]} 35. Kxb4 {[%clk 0:00:03.9]} 35... Rd4+
{[%clk 0:00:56.4]} 36. Kb5 {[%clk 0:00:04.2]} 36... Rxe4 {[%clk 0:00:56.8]} 37.
a5 {[%clk 0:00:04.7]} 37... Kf7 {[%clk 0:00:57]} 38. a6 {[%clk 0:00:05.3]} 38...
Re2 {[%clk 0:00:57.2]} 39. a7 {[%clk 0:00:05.5]} 39... Ra2 {[%clk 0:00:57.4]}
40. Kb6 {[%clk 0:00:06.2]} 40... f5 {[%clk 0:00:57.2]} 41. Kb7 {[%clk
0:00:06.7]} 41... f4 {[%clk 0:00:57.6]} 42. a8=Q {[%clk 0:00:06.9]} 42... Rxa8
{[%clk 0:00:57.3]} 0-1